[Event "*** SCC Grand Prix: Titled Tuesday Blitz"]
[Site "Chess.com"]
[Date "2020.09.29"]
[Round "4"]
[White "Hikaru"]
[Black "sergiochess83"]
[Result "1-0"]
[WhiteElo "3247"]
[BlackElo "2807"]
[TimeControl "180+1"]
[EndTime "10:39:01 PDT"]
[Termination "Hikaru won on time"]

1. Nf3 {[%clk 0:03:00.9]} 1... d5 {[%clk 0:02:59.3]} 2. e3 {[%clk 0:02:57.9]}
2... Nf6 {[%clk 0:02:56.4]} 3. c4 {[%clk 0:02:55.8]} 3... c6 {[%clk 0:02:52.2]}
4. d4 {[%clk 0:02:55.7]} 4... Bg4 {[%clk 0:02:51.6]} 5. h3 {[%clk 0:02:53.6]}
5... Bh5 {[%clk 0:02:51.4]} 6. Nc3 {[%clk 0:02:50.7]} 6... e6 {[%clk 0:02:51.6]}
7. g4 {[%clk 0:02:49.9]} 7... Bg6 {[%clk 0:02:51.8]} 8. Ne5 {[%clk 0:02:50.4]}
8... Nbd7 {[%clk 0:02:52]} 9. h4 {[%clk 0:02:34.1]} 9... dxc4 {[%clk 0:02:12.2]}
10. Nxc4 {[%clk 0:02:33.4]} 10... h5 {[%clk 0:02:09.1]} 11. g5 {[%clk
0:02:33.2]} 11... Nd5 {[%clk 0:02:08.9]} 12. Bg2 {[%clk 0:02:33.5]} 12... Bb4
{[%clk 0:01:58.2]} 13. Bd2 {[%clk 0:02:31.6]} 13... O-O {[%clk 0:01:48.2]} 14.
e4 {[%clk 0:02:10.2]} 14... N5b6 {[%clk 0:01:45.6]} 15. Qb3 {[%clk 0:02:09.7]}
15... a5 {[%clk 0:01:35.3]} 16. a3 {[%clk 0:02:04]} 16... Nxc4 {[%clk
0:01:29.1]} 17. Qxc4 {[%clk 0:02:04.1]} 17... Be7 {[%clk 0:01:29.4]} 18. Ne2
{[%clk 0:02:04]} 18... c5 {[%clk 0:01:23]} 19. Nf4 {[%clk 0:01:48.4]} 19... cxd4
{[%clk 0:01:17.4]} 20. Nxg6 {[%clk 0:01:43.7]} 20... fxg6 {[%clk 0:01:18.3]} 21.
Qxe6+ {[%clk 0:01:38.8]} 21... Kh7 {[%clk 0:01:18.1]} 22. O-O {[%clk 0:01:38.9]}
22... Nc5 {[%clk 0:01:12.8]} 23. Qc4 {[%clk 0:01:29]} 23... Rc8 {[%clk
0:01:04.3]} 24. Rad1 {[%clk 0:01:21.1]} 24... Nxe4 {[%clk 0:00:50.2]} 25. Qd3
{[%clk 0:01:20.1]} 25... Nxd2 {[%clk 0:00:40.7]} 26. Qxd2 {[%clk 0:01:20.1]}
26... Qc7 {[%clk 0:00:30.5]} 27. Rfe1 {[%clk 0:01:11.6]} 27... Bc5 {[%clk
0:00:27.6]} 28. b4 {[%clk 0:01:07.4]} 28... axb4 {[%clk 0:00:27.6]} 29. axb4
{[%clk 0:01:08.3]} 29... Ba7 {[%clk 0:00:28]} 30. Qd3 {[%clk 0:00:59]} 30... Qf4
{[%clk 0:00:22.3]} 31. Re2 {[%clk 0:00:28]} 31... Qxh4 {[%clk 0:00:18.8]} 32.
Be4 {[%clk 0:00:21.3]} 32... Rc3 {[%clk 0:00:11.8]} 33. Bxg6+ {[%clk 0:00:19.8]}
33... Kh8 {[%clk 0:00:12.1]} 34. Qf5 {[%clk 0:00:19.2]} 34... Rcc8 {[%clk
0:00:02.7]} 35. Qe4 {[%clk 0:00:19.5]} 35... Qxg5+ {[%clk 0:00:02.2]} 36. Qg2
{[%clk 0:00:20]} 36... Qxg2+ {[%clk 0:00:01.9]} 37. Kxg2 {[%clk 0:00:20.9]}
37... Rc6 {[%clk 0:00:01.8]} 38. Bxh5 {[%clk 0:00:20.6]} 38... Rcf6 {[%clk
0:00:02.7]} 39. f3 {[%clk 0:00:20.1]} 39... g6 {[%clk 0:00:02.8]} 40. Bg4 {[%clk
0:00:20.4]} 40... R8f7 {[%clk 0:00:03.1]} 41. Re8+ {[%clk 0:00:18.8]} 41... Kg7
{[%clk 0:00:02.8]} 42. Be6 {[%clk 0:00:18.6]} 42... Rc7 {[%clk 0:00:02.4]} 43.
Rh1 {[%clk 0:00:16.8]} 1-0

[Event "*** SCC Grand Prix: Titled Tuesday Blitz"]
[Site "Chess.com"]
[Date "2020.09.29"]
[Round "4"]
[White "Superfelix"]
[Black "GmSergioBarrientos"]
[Result "0-1"]
[WhiteElo "2482"]
[BlackElo "2692"]
[TimeControl "180+1"]
[EndTime "10:39:01 PDT"]
[Termination "GmSergioBarrientos won by resignation"]

1. e4 {[%clk 0:03:00.9]} 1... c5 {[%clk 0:02:59.6]} 2. Nf3 {[%clk 0:03:00.8]}
2... d6 {[%clk 0:02:59.1]} 3. d4 {[%clk 0:03:01]} 3... Nf6 {[%clk 0:02:58]} 4.
Nc3 {[%clk 0:03:00.7]} 4... cxd4 {[%clk 0:02:56.6]} 5. Nxd4 {[%clk 0:03:01.6]}
5... a6 {[%clk 0:02:56.3]} 6. g3 {[%clk 0:03:01.9]} 6... Bg4 {[%clk 0:02:54]} 7.
f3 {[%clk 0:02:57.9]} 7... Bd7 {[%clk 0:02:53.3]} 8. Bg2 {[%clk 0:02:57.8]} 8...
Nc6 {[%clk 0:02:53.2]} 9. Nde2 {[%clk 0:02:51.7]} 9... g6 {[%clk 0:02:43.7]} 10.
O-O {[%clk 0:02:51.3]} 10... Bg7 {[%clk 0:02:43.6]} 11. Be3 {[%clk 0:02:51.4]}
11... O-O {[%clk 0:02:43.5]} 12. Qd2 {[%clk 0:02:50.1]} 12... Rc8 {[%clk
0:02:37.5]} 13. Rad1 {[%clk 0:02:45.7]} 13... Ne5 {[%clk 0:02:36.8]} 14. b3
{[%clk 0:02:43.7]} 14... b5 {[%clk 0:02:33.8]} 15. h3 {[%clk 0:02:35]} 15... b4
{[%clk 0:02:30.4]} 16. Nd5 {[%clk 0:02:34.1]} 16... Nxd5 {[%clk 0:02:30.2]} 17.
exd5 {[%clk 0:02:35]} 17... Bb5 {[%clk 0:02:30.3]} 18. Rf2 {[%clk 0:02:20.6]}
18... Bxe2 {[%clk 0:02:28.3]} 19. Qxe2 {[%clk 0:02:16.6]} 19... Qa5 {[%clk
0:02:24.6]} 20. f4 {[%clk 0:02:04.6]} 20... Nd7 {[%clk 0:02:23.7]} 21. Bd4
{[%clk 0:01:51.6]} 21... Bxd4 {[%clk 0:02:10.5]} 22. Rxd4 {[%clk 0:01:52.5]}
22... Rfe8 {[%clk 0:02:11.3]} 23. Qd2 {[%clk 0:01:46.2]} 23... Qxa2 {[%clk
0:01:57.5]} 24. Rxb4 {[%clk 0:01:44.4]} 24... Qa5 {[%clk 0:01:39.1]} 25. Ra4
{[%clk 0:01:42.7]} 25... Qb6 {[%clk 0:01:38.2]} 26. Qd4 {[%clk 0:01:39.7]} 26...
Nc5 {[%clk 0:01:35.8]} 27. Ra1 {[%clk 0:01:27.9]} 27... a5 {[%clk 0:01:35.7]}
28. Kh2 {[%clk 0:01:24.8]} 28... Ra8 {[%clk 0:01:30.9]} 29. f5 {[%clk
0:01:23.8]} 29... Qb4 {[%clk 0:01:27.1]} 30. Qe3 {[%clk 0:01:12.6]} 30... a4
{[%clk 0:01:23.4]} 31. bxa4 {[%clk 0:01:06.3]} 31... Rxa4 {[%clk 0:01:23.4]} 32.
Rxa4 {[%clk 0:01:04.9]} 32... Qxa4 {[%clk 0:01:24.3]} 33. fxg6 {[%clk
0:00:55.8]} 33... hxg6 {[%clk 0:01:24.1]} 34. h4 {[%clk 0:00:46.9]} 34... Qa1
{[%clk 0:01:15.1]} 35. Qf4 {[%clk 0:00:42.2]} 35... Rf8 {[%clk 0:01:13.3]} 36.
Re2 {[%clk 0:00:41.9]} 36... Qf6 {[%clk 0:01:11.1]} 37. Qxf6 {[%clk 0:00:38.2]}
37... exf6 {[%clk 0:01:12]} 38. Re7 {[%clk 0:00:32.6]} 38... Rc8 {[%clk
0:01:11.9]} 39. Bh3 {[%clk 0:00:32.2]} 39... f5 {[%clk 0:01:11.2]} 40. h5 {[%clk
0:00:30.3]} 40... Kf8 {[%clk 0:01:10.2]} 41. Ra7 {[%clk 0:00:26.8]} 41... Ne4
{[%clk 0:01:10]} 42. Ra2 {[%clk 0:00:17.8]} 42... Kg7 {[%clk 0:01:08.3]} 43.
hxg6 {[%clk 0:00:16.9]} 43... fxg6 {[%clk 0:01:08.5]} 44. Bg2 {[%clk 0:00:17.2]}
44... Nf6 {[%clk 0:01:08.2]} 45. Ra7+ {[%clk 0:00:16.5]} 45... Kh6 {[%clk
0:01:07.5]} 46. Ra6 {[%clk 0:00:16.9]} 46... Rxc2 {[%clk 0:01:02.4]} 47. Rxd6
{[%clk 0:00:16.5]} 47... Ng4+ {[%clk 0:01:03.3]} 48. Kg1 {[%clk 0:00:16.1]}
48... Rc1+ {[%clk 0:01:03.1]} 49. Bf1 {[%clk 0:00:16.7]} 49... Ne3 {[%clk
0:01:03.5]} 50. Kf2 {[%clk 0:00:17.2]} 50... Nxf1 {[%clk 0:01:03.6]} 51. Rd8
{[%clk 0:00:17.5]} 51... Nd2 {[%clk 0:01:01.7]} 52. d6 {[%clk 0:00:17.5]} 52...
Ne4+ {[%clk 0:00:59.1]} 53. Ke3 {[%clk 0:00:17.9]} 53... Rd1 {[%clk 0:00:58]}
54. d7 {[%clk 0:00:18.2]} 54... Kg7 {[%clk 0:00:58.1]} 55. g4 {[%clk 0:00:16.9]}
55... Nf6 {[%clk 0:00:56.4]} 56. gxf5 {[%clk 0:00:17]} 56... gxf5 {[%clk
0:00:50.3]} 57. Kf4 {[%clk 0:00:17.3]} 57... Kg6 {[%clk 0:00:50.6]} 58. Ke5
{[%clk 0:00:16.1]} 58... Rxd7 {[%clk 0:00:46.5]} 59. Kf4 {[%clk 0:00:16.7]}
59... Rxd8 {[%clk 0:00:45.9]} 0-1

[Event "*** SCC Grand Prix: Titled Tuesday Blitz"]
[Site "Chess.com"]
[Date "2020.09.29"]
[Round "4"]
[White "katchesskat"]
[Black "csati17"]
[Result "0-1"]
[WhiteElo "2270"]
[BlackElo "2583"]
[TimeControl "180+1"]
[EndTime "10:39:04 PDT"]
[Termination "csati17 won by checkmate"]

1. c4 {[%clk 0:03:00.9]} 1... e6 {[%clk 0:02:58.6]} 2. Nf3 {[%clk 0:02:59.4]}
2... d5 {[%clk 0:02:58.9]} 3. e3 {[%clk 0:02:59.3]} 3... Nf6 {[%clk 0:02:58.8]}
4. a3 {[%clk 0:02:58.5]} 4... Be7 {[%clk 0:02:53.5]} 5. Qc2 {[%clk 0:02:58.2]}
5... O-O {[%clk 0:02:52.9]} 6. h4 {[%clk 0:02:57.5]} 6... c5 {[%clk 0:02:46.2]}
7. b3 {[%clk 0:02:56]} 7... d4 {[%clk 0:02:45.7]} 8. d3 {[%clk 0:02:54.3]} 8...
Nc6 {[%clk 0:02:44]} 9. e4 {[%clk 0:02:54.4]} 9... e5 {[%clk 0:02:41.4]} 10. Bg5
{[%clk 0:02:53.7]} 10... h6 {[%clk 0:02:39.5]} 11. Bxf6 {[%clk 0:02:53.1]} 11...
Bxf6 {[%clk 0:02:40.4]} 12. Nbd2 {[%clk 0:02:52.7]} 12... a5 {[%clk 0:02:32.7]}
13. Be2 {[%clk 0:02:52.2]} 13... a4 {[%clk 0:02:32.4]} 14. Rb1 {[%clk
0:02:46.4]} 14... axb3 {[%clk 0:02:30.6]} 15. Rxb3 {[%clk 0:02:32.5]} 15... b6
{[%clk 0:01:52.7]} 16. Qb2 {[%clk 0:02:24.3]} 16... Ra6 {[%clk 0:01:46.3]} 17.
g3 {[%clk 0:02:13.6]} 17... Na5 {[%clk 0:01:44.7]} 18. Rb5 {[%clk 0:02:05.6]}
18... Bd7 {[%clk 0:01:45]} 19. Rg1 {[%clk 0:01:56.2]} 19... h5 {[%clk
0:01:43.1]} 20. g4 {[%clk 0:01:44]} 20... Bxg4 {[%clk 0:01:26.8]} 21. Ng5 {[%clk
0:01:41.4]} 21... Bxg5 {[%clk 0:01:19.4]} 22. Bxg4 {[%clk 0:01:35.6]} 22...
Bxd2+ {[%clk 0:01:19.1]} 23. Qxd2 {[%clk 0:01:24.1]} 23... hxg4 {[%clk 0:01:20]}
24. Rxg4 {[%clk 0:01:23.5]} 24... Qf6 {[%clk 0:01:03.8]} 25. Ke2 {[%clk
0:01:13.2]} 25... Nc6 {[%clk 0:00:59.2]} 26. Qb2 {[%clk 0:01:03.9]} 26... Ne7
{[%clk 0:00:57.1]} 27. h5 {[%clk 0:00:55.2]} 27... Kh7 {[%clk 0:00:50.8]} 28.
Qc1 {[%clk 0:00:51.6]} 28... Rfa8 {[%clk 0:00:47.2]} 29. Rb3 {[%clk 0:00:51.2]}
29... Qh6 {[%clk 0:00:35.2]} 30. Qg1 {[%clk 0:00:18.6]} 30... Rxa3 {[%clk
0:00:30.6]} 31. Rxb6 {[%clk 0:00:18.3]} 31... Ra2+ {[%clk 0:00:23.9]} 32. Kf3
{[%clk 0:00:18.4]} 32... Qxb6 {[%clk 0:00:17]} 33. Rxg7+ {[%clk 0:00:16.5]}
33... Kh8 {[%clk 0:00:17.6]} 34. Rxf7 {[%clk 0:00:16.8]} 34... Qh6 {[%clk
0:00:15.1]} 35. Qg4 {[%clk 0:00:12.6]} 35... Rg8 {[%clk 0:00:14]} 36. Qh4 {[%clk
0:00:07.7]} 36... Rg7 {[%clk 0:00:11.8]} 37. Rf8+ {[%clk 0:00:07.6]} 37... Ng8
{[%clk 0:00:10.9]} 38. Rf5 {[%clk 0:00:07.3]} 38... Qd2 {[%clk 0:00:09.4]} 39.
h6 {[%clk 0:00:05.9]} 39... Qe2# {[%clk 0:00:09.9]} 0-1

[Event "*** SCC Grand Prix: Titled Tuesday Blitz"]
[Site "Chess.com"]
[Date "2020.09.29"]
[Round "4"]
[White "malakismayil"]
[Black "tlomigtlis"]
[Result "0-1"]
[WhiteElo "2324"]
[BlackElo "2527"]
[TimeControl "180+1"]
[EndTime "10:39:05 PDT"]
[Termination "tlomigtlis won by checkmate"]

1. e4 {[%clk 0:03:00.9]} 1... c5 {[%clk 0:02:59.8]} 2. Nf3 {[%clk 0:03:00.3]}
2... d6 {[%clk 0:03:00.2]} 3. d4 {[%clk 0:02:59.3]} 3... cxd4 {[%clk 0:03:01.1]}
4. Nxd4 {[%clk 0:02:59.1]} 4... Nf6 {[%clk 0:03:01.6]} 5. Nc3 {[%clk 0:02:58.2]}
5... a6 {[%clk 0:03:01.9]} 6. Bc4 {[%clk 0:02:56.8]} 6... e6 {[%clk 0:03:01.7]}
7. a3 {[%clk 0:02:55.3]} 7... Nbd7 {[%clk 0:03:01]} 8. O-O {[%clk 0:02:54.5]}
8... Nc5 {[%clk 0:03:01.1]} 9. Qe2 {[%clk 0:02:53.1]} 9... Be7 {[%clk
0:03:00.9]} 10. h3 {[%clk 0:02:51.7]} 10... O-O {[%clk 0:03:00.3]} 11. Bg5
{[%clk 0:02:22]} 11... Qc7 {[%clk 0:02:53.9]} 12. Rad1 {[%clk 0:02:08.4]} 12...
b5 {[%clk 0:02:48]} 13. Ba2 {[%clk 0:02:02.7]} 13... Bb7 {[%clk 0:02:47.8]} 14.
f3 {[%clk 0:02:01.8]} 14... h6 {[%clk 0:02:37.3]} 15. Be3 {[%clk 0:02:00.6]}
15... Rac8 {[%clk 0:02:34.3]} 16. Rfe1 {[%clk 0:01:59]} 16... Rfd8 {[%clk
0:02:33.1]} 17. Qf2 {[%clk 0:01:55.7]} 17... d5 {[%clk 0:02:26.9]} 18. exd5
{[%clk 0:01:53.6]} 18... Nxd5 {[%clk 0:02:27.8]} 19. Nxd5 {[%clk 0:01:53.3]}
19... Bxd5 {[%clk 0:02:28.7]} 20. Bxd5 {[%clk 0:01:53]} 20... Rxd5 {[%clk
0:02:29.6]} 21. c3 {[%clk 0:01:52.9]} 21... Rcd8 {[%clk 0:02:28.1]} 22. f4
{[%clk 0:01:49.9]} 22... Bf6 {[%clk 0:02:25.3]} 23. Kh1 {[%clk 0:01:40]} 23...
e5 {[%clk 0:02:19.4]} 24. fxe5 {[%clk 0:01:38.1]} 24... Bxe5 {[%clk 0:02:20.3]}
25. Qf3 {[%clk 0:01:34.6]} 25... Qd7 {[%clk 0:02:13.7]} 26. Rf1 {[%clk
0:01:30.6]} 26... Ne6 {[%clk 0:01:48.1]} 27. Qf2 {[%clk 0:01:01.1]} 27... Nxd4
{[%clk 0:01:44.6]} 28. cxd4 {[%clk 0:01:00.8]} 28... Bf6 {[%clk 0:01:42.4]} 29.
Qf3 {[%clk 0:00:53.4]} 29... Qd6 {[%clk 0:01:29.4]} 30. Bxh6 {[%clk 0:00:47.3]}
30... Rxd4 {[%clk 0:01:21.3]} 31. Rxd4 {[%clk 0:00:41.9]} 31... Qxd4 {[%clk
0:01:22.2]} 32. Bc1 {[%clk 0:00:36.9]} 32... Qd3 {[%clk 0:01:16.5]} 33. Qf2
{[%clk 0:00:30.7]} 33... Re8 {[%clk 0:01:08.9]} 34. Re1 {[%clk 0:00:28.3]} 34...
Rc8 {[%clk 0:01:06.5]} 35. Bf4 {[%clk 0:00:20.7]} 35... Qc2 {[%clk 0:00:48.6]}
36. Re2 {[%clk 0:00:18.8]} 36... Qb1+ {[%clk 0:00:48.4]} 37. Kh2 {[%clk
0:00:18.3]} 37... g6 {[%clk 0:00:46.8]} 38. Bg3 {[%clk 0:00:17]} 38... Kg7
{[%clk 0:00:44.6]} 39. Bf4 {[%clk 0:00:12.7]} 39... Rc6 {[%clk 0:00:39.6]} 40.
Rd2 {[%clk 0:00:11.5]} 40... Qf5 {[%clk 0:00:38.5]} 41. Bg3 {[%clk 0:00:10.8]}
41... Qe4 {[%clk 0:00:34.6]} 42. Qe2 {[%clk 0:00:09.9]} 42... Qb1 {[%clk
0:00:27.6]} 43. Qf2 {[%clk 0:00:09.3]} 43... Rc1 {[%clk 0:00:27.5]} 44. Bf4
{[%clk 0:00:08.9]} 44... Rh1+ {[%clk 0:00:27.1]} 45. Kg3 {[%clk 0:00:08.8]}
45... Qf5 {[%clk 0:00:25.3]} 46. Qe3 {[%clk 0:00:07.6]} 46... Qh5 {[%clk
0:00:22.2]} 47. Qf3 {[%clk 0:00:07.2]} 47... Bh4# {[%clk 0:00:22.1]} 0-1

[Event "*** SCC Grand Prix: Titled Tuesday Blitz"]
[Site "Chess.com"]
[Date "2020.09.29"]
[Round "4"]
[White "DanielTitichoca"]
[Black "gixfantastix"]
[Result "1-0"]
[WhiteElo "2375"]
[BlackElo "2084"]
[TimeControl "180+1"]
[EndTime "10:39:09 PDT"]
[Termination "DanielTitichoca won on time"]

1. e4 {[%clk 0:03:00.9]} 1... g6 {[%clk 0:03:00.9]} 2. h4 {[%clk 0:02:58.6]}
2... Bg7 {[%clk 0:03:01.8]} 3. h5 {[%clk 0:02:57.8]} 3... d5 {[%clk 0:02:58.7]}
4. exd5 {[%clk 0:02:54.2]} 4... Qxd5 {[%clk 0:02:57]} 5. Nc3 {[%clk 0:02:54.6]}
5... Qa5 {[%clk 0:02:54.3]} 6. Bc4 {[%clk 0:02:50.7]} 6... Nc6 {[%clk
0:02:47.1]} 7. a3 {[%clk 0:02:48.8]} 7... Ne5 {[%clk 0:02:36.2]} 8. Ba2 {[%clk
0:02:38.9]} 8... Bg4 {[%clk 0:02:35.4]} 9. f3 {[%clk 0:02:37]} 9... Bd7 {[%clk
0:02:31.2]} 10. d3 {[%clk 0:02:28.5]} 10... O-O-O {[%clk 0:02:30.3]} 11. Be3
{[%clk 0:02:27.9]} 11... e6 {[%clk 0:02:01.7]} 12. Ne2 {[%clk 0:02:13.5]} 12...
Ne7 {[%clk 0:01:57.2]} 13. b4 {[%clk 0:02:05.5]} 13... Qa6 {[%clk 0:01:53.3]}
14. a4 {[%clk 0:02:04.2]} 14... Nf5 {[%clk 0:01:48.3]} 15. Bf2 {[%clk
0:02:01.2]} 15... Qd6 {[%clk 0:01:25.3]} 16. Bc5 {[%clk 0:01:56.2]} 16... Nxf3+
{[%clk 0:01:06]} 17. gxf3 {[%clk 0:01:54.6]} 17... Bxc3+ {[%clk 0:01:06.6]} 18.
Kf2 {[%clk 0:01:47.2]} 18... Qe5 {[%clk 0:00:59.5]} 19. Nxc3 {[%clk 0:01:39.9]}
19... Qxc3 {[%clk 0:00:39.9]} 20. Bb3 {[%clk 0:01:31.5]} 20... b6 {[%clk
0:00:35]} 21. Be3 {[%clk 0:01:22.9]} 21... Nxe3 {[%clk 0:00:34.7]} 22. Kxe3
{[%clk 0:01:23.5]} 22... Bc6 {[%clk 0:00:30.2]} 23. Qe1 {[%clk 0:01:18.5]} 23...
Qe5+ {[%clk 0:00:20.1]} 24. Kf2 {[%clk 0:01:17.2]} 24... Qf5 {[%clk 0:00:17]}
25. Qe3 {[%clk 0:01:16.7]} 25... g5 {[%clk 0:00:15.1]} 26. Rhg1 {[%clk
0:01:08.9]} 26... g4 {[%clk 0:00:10.8]} 27. Rxg4 {[%clk 0:01:08.5]} 27... Qxh5
{[%clk 0:00:11]} 28. a5 {[%clk 0:01:08]} 28... Rhg8 {[%clk 0:00:10.1]} 29. Rag1
{[%clk 0:00:55.8]} 29... Rxg4 {[%clk 0:00:08.3]} 30. Rxg4 {[%clk 0:00:53]} 30...
Qh2+ {[%clk 0:00:07.7]} 31. Rg2 {[%clk 0:00:51.5]} 31... Qh4+ {[%clk 0:00:07.7]}
32. Kg1 {[%clk 0:00:50.3]} 32... Qxb4 {[%clk 0:00:08.6]} 33. axb6 {[%clk
0:00:47]} 33... axb6 {[%clk 0:00:09.5]} 34. Rg7 {[%clk 0:00:45]} 34... Kb7
{[%clk 0:00:08.2]} 35. Rg4 {[%clk 0:00:34.2]} 35... Qa3 {[%clk 0:00:07]} 36. Qe5
{[%clk 0:00:28.6]} 36... Qc1+ {[%clk 0:00:05.6]} 37. Kf2 {[%clk 0:00:25.2]}
37... Qd1 {[%clk 0:00:05]} 38. Qf4 {[%clk 0:00:17.9]} 38... h5 {[%clk 0:00:03]}
39. Rg7 {[%clk 0:00:17.9]} 1-0

[Event "*** SCC Grand Prix: Titled Tuesday Blitz"]
[Site "Chess.com"]
[Date "2020.09.29"]
[Round "4"]
[White "lucasmito"]
[Black "Jadeit90"]
[Result "0-1"]
[WhiteElo "2455"]
[BlackElo "2329"]
[TimeControl "180+1"]
[EndTime "10:39:10 PDT"]
[Termination "Jadeit90 won on time"]

1. e4 {[%clk 0:02:56.5]} 1... g6 {[%clk 0:03:00.2]} 2. d4 {[%clk 0:02:55.8]}
2... Bg7 {[%clk 0:03:01.1]} 3. Nc3 {[%clk 0:02:56.3]} 3... c5 {[%clk 0:03:02]}
4. dxc5 {[%clk 0:02:53.6]} 4... Qa5 {[%clk 0:03:01.9]} 5. Nf3 {[%clk 0:02:44.4]}
5... Qxc5 {[%clk 0:03:00.5]} 6. Nd5 {[%clk 0:02:40.4]} 6... Nf6 {[%clk
0:02:54.8]} 7. Be3 {[%clk 0:02:35.4]} 7... Qa5+ {[%clk 0:02:55]} 8. Bd2 {[%clk
0:02:17.8]} 8... Qd8 {[%clk 0:02:54.8]} 9. Bc3 {[%clk 0:02:15.2]} 9... O-O
{[%clk 0:02:54]} 10. Nxf6+ {[%clk 0:02:12.6]} 10... exf6 {[%clk 0:02:54.1]} 11.
Bd3 {[%clk 0:02:07.1]} 11... d5 {[%clk 0:02:53.7]} 12. O-O {[%clk 0:02:05.3]}
12... Nc6 {[%clk 0:02:52.9]} 13. exd5 {[%clk 0:02:03.9]} 13... Qxd5 {[%clk
0:02:52.6]} 14. h3 {[%clk 0:02:02.4]} 14... Bf5 {[%clk 0:02:48.3]} 15. Bxf5
{[%clk 0:01:57]} 15... Qxf5 {[%clk 0:02:49.2]} 16. Re1 {[%clk 0:01:50.4]} 16...
Rad8 {[%clk 0:02:48.8]} 17. Qe2 {[%clk 0:01:50.7]} 17... Qd5 {[%clk 0:02:44]}
18. b3 {[%clk 0:01:40.5]} 18... f5 {[%clk 0:02:43]} 19. Bxg7 {[%clk 0:01:40.1]}
19... Kxg7 {[%clk 0:02:43.9]} 20. c4 {[%clk 0:01:36.2]} 20... Qd3 {[%clk
0:02:43.1]} 21. Qb2+ {[%clk 0:01:35.7]} 21... Kg8 {[%clk 0:02:42.7]} 22. Rad1
{[%clk 0:01:34.5]} 22... Qxd1 {[%clk 0:02:42.4]} 23. Rxd1 {[%clk 0:01:35.4]}
23... Rxd1+ {[%clk 0:02:42.5]} 24. Kh2 {[%clk 0:01:36.3]} 24... Rd6 {[%clk
0:02:39.6]} 25. c5 {[%clk 0:01:31]} 25... Re6 {[%clk 0:02:39.4]} 26. b4 {[%clk
0:01:30.8]} 26... Rfe8 {[%clk 0:02:36.8]} 27. b5 {[%clk 0:01:30.1]} 27... Ne5
{[%clk 0:02:36.8]} 28. Nd4 {[%clk 0:01:28.2]} 28... R6e7 {[%clk 0:02:36.6]} 29.
Qc3 {[%clk 0:01:19.4]} 29... Rc8 {[%clk 0:02:30.4]} 30. a4 {[%clk 0:01:06.8]}
30... Rec7 {[%clk 0:02:27.9]} 31. Nxf5 {[%clk 0:00:22.4]} 31... Rxc5 {[%clk
0:02:26.6]} 32. Ne7+ {[%clk 0:00:21.6]} 32... Kf8 {[%clk 0:02:20.2]} 33. Qe3
{[%clk 0:00:18.8]} 33... Kxe7 {[%clk 0:02:19.3]} 34. f4 {[%clk 0:00:19.2]} 34...
f6 {[%clk 0:02:18.9]} 35. fxe5 {[%clk 0:00:18.7]} 35... Rxe5 {[%clk 0:02:17.4]}
36. Qxa7 {[%clk 0:00:19.6]} 36... Rc7 {[%clk 0:02:16.5]} 37. Qb8 {[%clk
0:00:18.9]} 37... Rd7 {[%clk 0:02:13.3]} 38. Qh8 {[%clk 0:00:15.3]} 38... Ke6
{[%clk 0:02:06.9]} 39. Qg8+ {[%clk 0:00:12.6]} 39... Kf5 {[%clk 0:02:04.6]} 40.
Qc4 {[%clk 0:00:10.6]} 40... Red5 {[%clk 0:02:01.8]} 41. a5 {[%clk 0:00:05.5]}
41... h5 {[%clk 0:02:01.2]} 42. a6 {[%clk 0:00:05]} 42... bxa6 {[%clk
0:02:00.7]} 43. bxa6 {[%clk 0:00:05.1]} 43... Ra5 {[%clk 0:01:44.2]} 44. Qc8
{[%clk 0:00:02.9]} 44... Ke6 {[%clk 0:01:40.6]} 45. Qc6+ {[%clk 0:00:03.3]}
45... Ke7 {[%clk 0:01:37.5]} 46. Qb6 {[%clk 0:00:01.1]} 46... Ra2 {[%clk
0:01:24.5]} 47. Qc5+ {[%clk 0:00:01.5]} 47... Ke8 {[%clk 0:01:18.8]} 48. Qb5
{[%clk 0:00:01.3]} 48... Ke7 {[%clk 0:01:15.8]} 49. h4 {[%clk 0:00:00.9]} 49...
Rdd2 {[%clk 0:01:14.5]} 50. Qc5+ {[%clk 0:00:01.6]} 50... Ke6 {[%clk 0:01:07.1]}
51. Qc6+ {[%clk 0:00:01.9]} 51... Kf5 {[%clk 0:01:00.3]} 52. a7 {[%clk
0:00:02.8]} 52... Rxa7 {[%clk 0:00:53.1]} 53. Qf3+ {[%clk 0:00:02.6]} 53... Ke6
{[%clk 0:00:51.8]} 54. Qe3+ {[%clk 0:00:03.5]} 54... Kf7 {[%clk 0:00:52.3]} 55.
Qxd2 {[%clk 0:00:04.1]} 55... Re7 {[%clk 0:00:51.9]} 0-1